fUSD/lending_fUSD_20240623
["ID","MTS","AMOUNT","RATE_DAILY","PERIOD"]
[330198066,1719119445053,-151.0,0.000209,2]
[330198067,1719119445063,-151.0,0.000209,2]
[330198068,1719119445073,-300.547011,0.000209,2]
[330198069,1719119445083,-156.259251,0.000209,2]
[330198070,1719119445093,-157.964181,0.000209,2]
[330198071,1719119445103,-154.495773,0.000209,2]
[330198072,1719119445114,-157.964181,0.000209,2]
[330198073,1719119445124,-155.464199,0.000209,2]
[330198074,1719119445134,-151.0,0.000209,2]
[330198075,1719119445143,-152.174068,0.000209,2]
[330198076,1719119445153,-531.7241055,0.000209,2]
[330198077,1719119445163,-151.0,0.000209,2]
[330198078,1719119445172,-151.0,0.000209,2]
[330198079,1719119445181,-4506.37498918,0.000209,2]
[330198080,1719119445191,-345.61667413,0.000209,2]
[330198081,1719119445201,-170.86222323,0.000209,2]
[330198082,1719119445210,-34984.16114292,0.000209,2]
[330198083,1719119445219,-426.18450476,0.000209,2]
[330198084,1719119445229,-1091.01304252,0.00020936,2]
[330198085,1719119445239,-1604.10743018,0.0002097,2]
[330198086,1719119445480,-1000.0,0.0002097,2]
[330198087,1719119445490,-500.0,0.0002097,2]
[330198088,1719119445501,-500.0,0.0002097,2]
[330198089,1719119445511,-601.42370069,0.0002097,2]
[330198090,1719119445521,-177.2413685,0.00020976,2]
[330198092,1719119445532,-216.40400055,0.00020976,2]
[330198094,1719119445542,-151.0,0.00020986,2]
[330198095,1719119445553,-151.0,0.00020986,2]
[330198096,1719119445562,-8102.0,0.00020986,2]
[330198097,1719119445571,-576.0,0.00020986,2]
[330198098,1719119445581,-33180.0,0.00020986,2]
[330198099,1719119445590,-27778.12910176,0.00020986,2]
[330198105,1719119446282,-1144.6138646,0.00018233,2]
[330198106,1719119593829,200.0,0.00026142,120]
[330198107,1719120387298,76332.10939301,0.0002078,120]
[330198108,1719120387327,57998.71002193,0.0002078,120]
[330198113,1719120632451,-950.133826,0.00013819,2]
[330198114,1719120632463,-1173.4998867,0.00014462,2]
[330198115,1719120632476,-164.19,0.00014562,2]
[330198116,1719120632486,-341.08341902,0.0001643,2]
[330198117,1719120632517,-361.75433876,0.0001643,2]
[330198118,1719120632530,-817.26918962,0.0001643,2]
[330198119,1719120632547,-2333.50701761,0.0001643,2]
[330198120,1719120632562,-2207.40403079,0.0001643,2]
[330198121,1719120632576,-1325.14524,0.0001643,2]
[330198122,1719120632672,-282.0978864,0.0001643,2]
[330198123,1719120632684,-361.25159242,0.0001643,2]
[330198124,1719120632699,-4423.15968538,0.0001643,2]
[330198125,1719120632711,-598.04,0.00016531,2]
[330198126,1719120632725,-202.517411,0.000169,2]
[330198127,1719120632737,-829.0,0.000171,3]
[330198128,1719120632752,-625.34587573,0.00017106,2]
[330198129,1719120632765,-364.68358896,0.00017106,2]
[330198130,1719120632777,-150.99,0.00017112,2]
[330198131,1719120632788,-191.36,0.0001726,2]
[330198132,1719120632800,-1690.84,0.0001726,2]
[330198133,1719120632814,-409.07,0.00017534,2]
[330198134,1719120632825,-195.8,0.00017679,2]
[330198135,1719120632837,-195.8,0.00018064,2]
[330198136,1719120632848,-213.13,0.00018112,2]
[330198137,1719120632859,-250.0,0.00018188,2]
[330198138,1719120632874,-328.40415863,0.00018232,2]
[330198139,1719120632885,-600.0,0.00018292,2]
[330198140,1719120632898,-302.34,0.00018307,2]
[330198141,1719120632909,-421.58235241,0.00018308,2]
[330198142,1719120632921,-1515.24764759,0.00018308,2]
[330198143,1719120632933,-10000.0,0.00018312,2]
[330198144,1719120632945,-250.0,0.00018315,2]
[330198145,1719120632956,-23900.0,0.00018391,2]
[330198146,1719120632967,-1159.94,0.00018402,2]
[330198147,1719120632978,-169.79,0.00018412,2]
[330198148,1719120632989,-1195.29,0.00018413,2]
[330198149,1719120633000,-200.01,0.00018421,2]
[330198150,1719120633011,-400.0,0.00018438,2]
[330198152,1719120633022,-1340.07749841,0.00018447,2]
[330198154,1719120633033,-188.97,0.00018448,2]
[330198156,1719120633044,-321.88,0.00018448,2]
[330198159,1719120633054,-195.8,0.00018449,2]
[330198161,1719120633065,-18520.81,0.00018485,2]
[330198163,1719120633075,-200.0,0.00018496,2]
[330198165,1719120633087,-2009.08,0.00018516,2]
[330198167,1719120633097,-2052.84,0.00018656,2]
[330198169,1719120633108,-598.04,0.00018794,2]
[330198172,1719120633119,-195.8,0.00018835,2]
[330198174,1719120633130,-200.0,0.000189,2]
[330198176,1719120633140,-167.01,0.00018992,2]
[330198178,1719120633152,-250.0,0.00019178,2]
[330198180,1719120633162,-195.8,0.0001922,2]
[330198182,1719120633174,-1308.87,0.00019313,2]
[330198185,1719120633185,-150.363,0.00019313,2]
[330198187,1719120633195,-2421.034,0.00019313,2]
[330198189,1719120633206,-532.111,0.00019313,2]
[330198191,1719120633217,-291.928,0.00019313,2]
[330198193,1719120633229,-283.683,0.00019313,2]
[330198195,1719120633239,-1671.553,0.00019313,2]
[330198197,1719120633250,-31657.981,0.00019313,2]
[330198200,1719120633260,-157.0,0.0001951,2]
[330198202,1719120633271,-1062.1315856,0.00019599,2]
[330198204,1719120633282,-195.8,0.00019605,2]
[330198206,1719120633293,-167.0,0.00019637,2]
[330198208,1719120633304,-300.0,0.00019697,2]
[330198210,1719120633315,-509.3,0.000197,2]
[330198213,1719120633326,-355.0,0.000197,2]
[330198215,1719120633337,-1000.0,0.000197,2]
[330198217,1719120633347,-225.0,0.000197,2]
[330198218,1719120633359,-502.0349,0.00019703,2]
[330198219,1719120633370,-2488.2581,0.00019703,2]
[330198220,1719120633381,-181.89665877,0.00019891,3]
[330198221,1719120633392,-195.8,0.00019991,2]
[330198222,1719120633403,-1434.2521051,0.0002,2]
[330198223,1719120633414,-181.0,0.0002,2]
[330198224,1719120633425,-181.0,0.0002,2]
[330198225,1719120633436,-18047.43271343,0.0002,2]
[330198226,1719120633450,-378.73,0.0002,2]
[330198227,1719120633477,-278.60878409,0.0002,2]
[330198228,1719120633491,-1115.8023317,0.0002,2]
[330198229,1719120633507,-1185.07649312,0.0002,2]
[330198230,1719120633521,-603.38328281,0.0002,2]
[330198231,1719120633536,-35546.16106253,0.0002,2]
[330198232,1719120633551,-3499.02376926,0.0002,2]
[330198233,1719120633575,-5761.97270198,0.0002,2]
[330198234,1719120633589,-289.3455407,0.0002,2]
[330198244,1719120638381,-1777.0,0.00018312,2]
[330198245,1719120638397,-4207.32988912,0.00018312,2]
[330198246,1719120640234,-1362.54920001,0.00018312,2]
[330198250,1719120643304,-2653.12091087,0.00018312,2]
[330198251,1719120643314,-10000.0,0.00018312,2]
[330198252,1719120643324,-603.445,0.00019313,2]
[330198253,1719120643334,-813.0,0.00019313,2]
[330198254,1719120643346,-1157.141,0.00019313,2]
[330198255,1719120643355,-219805.85373669,0.0002,2]
[330198256,1719120643367,-222.77755898,0.0002,2]
[330198257,1719120643377,-222.77755898,0.0002,2]
[330198258,1719120643386,-222.77755898,0.0002,2]
[330198259,1719120643396,-222.77755898,0.00020045,2]
[330198260,1719120643406,-222.77755898,0.00020045,2]
[330198261,1719120643416,-222.77755898,0.00020045,2]
[330198262,1719120643426,-222.77755898,0.00020045,2]
[330198263,1719120643436,-222.77755898,0.00020045,2]
[330198264,1719120643446,-222.77755898,0.00020045,2]
[330198265,1719120643456,-222.77755898,0.00020045,2]
[330198266,1719120643466,-222.77755898,0.00020045,2]
[330198267,1719120643476,-852.82,0.00020055,2]
[330198268,1719120643485,-418.39,0.00020055,2]
[330198269,1719120643495,-852.82,0.00020055,2]
[330198270,1719120643504,-418.39,0.00020055,2]
[330198271,1719120643514,-418.39,0.00020055,2]
[330198272,1719120643523,-852.82,0.00020055,2]
[330198273,1719120643533,-418.39,0.00020055,2]
[330198274,1719120643542,-852.82,0.00020055,2]
[330198275,1719120643552,-418.39,0.00020055,2]
[330198276,1719120643562,-852.82,0.00020055,2]
[330198277,1719120643571,-418.39,0.00020055,2]
[330198278,1719120643581,-852.82,0.00020055,2]
[330198279,1719120643592,-418.39,0.00020055,2]
[330198280,1719120643601,-852.82,0.00020055,2]
[330198281,1719120643611,-418.39,0.00020055,2]
[330198282,1719120643621,-852.82,0.00020055,2]
[330198283,1719120643631,-417.31,0.00020055,2]
[330198284,1719120643642,-1703.24,0.00020055,2]
[330198285,1719120643651,-852.82,0.00020055,2]
[330198286,1719120643660,-222.77755898,0.000201,2]
[330198287,1719120643670,-421.89,0.0002011,2]
[330198288,1719120643679,-418.39,0.0002011,2]
[330198289,1719120643688,-418.39,0.0002011,2]
[330198290,1719120643698,-222.77755898,0.00020182,2]
[330198291,1719120643707,-222.77755898,0.00020182,2]
[330198292,1719120643716,-222.77755898,0.00020182,2]
[330198293,1719120643726,-222.77755898,0.00020182,2]
[330198294,1719120643736,-222.77755898,0.00020182,2]
[330198295,1719120643746,-222.77755898,0.00020182,2]
[330198296,1719120643755,-222.77755898,0.00020182,2]
[330198297,1719120643764,-222.77755898,0.00020182,2]
[330198298,1719120643774,-222.77755898,0.00020182,2]
[330198299,1719120643783,-222.77755898,0.00020182,2]
[330198300,1719120643794,-222.77755898,0.00020182,2]
[330198301,1719120643807,-222.77755898,0.00020182,2]
[330198302,1719120643816,-222.77755898,0.00020182,2]
[330198303,1719120643826,-222.77755898,0.00020182,2]
[330198304,1719120643838,-342.07,0.00020192,2]
[330198305,1719120643849,-527.66,0.00020192,2]
[330198306,1719120643860,-446.21,0.00020192,2]
[330198307,1719120643870,-150.0,0.00020192,2]
[330198308,1719120643881,-164.6,0.00020192,2]
[330198309,1719120643891,-242.79,0.00020192,2]
[330198310,1719120643900,-157.15,0.00020192,2]
[330198311,1719120643910,-150.0,0.00020192,2]
[330198312,1719120643920,-286.18,0.00020192,2]
[330198313,1719120643929,-423.67,0.00020192,2]
[330198314,1719120643939,-150.0,0.00020192,2]
[330198315,1719120643948,-179.33,0.00020192,2]
[330198316,1719120643958,-164.6,0.00020192,2]
[330198317,1719120643967,-150.0,0.00020192,2]
[330198318,1719120643977,-150.0,0.00020192,2]
[330198319,1719120643986,-150.0,0.00020192,2]
[330198320,1719120643996,-527.66,0.00020192,2]
[330198321,1719120644005,-423.67,0.00020192,2]
[330198322,1719120644014,-150.0,0.00020192,2]
[330198323,1719120644024,-150.0,0.00020192,2]
[330198324,1719120644034,-354.29,0.00020192,2]
[330198325,1719120644043,-527.66,0.00020192,2]
[330198326,1719120644053,-150.0,0.00020192,2]
[330198327,1719120644062,-150.0,0.00020192,2]
[330198328,1719120644072,-423.67,0.00020192,2]
[330198329,1719120644084,-150.0,0.00020192,2]
[330198330,1719120644094,-150.0,0.00020192,2]
[330198331,1719120644104,-150.0,0.00020192,2]
[330198332,1719120644114,-150.0,0.00020192,2]
[330198333,1719120644124,-150.0,0.00020192,2]
[330198334,1719120644134,-354.29,0.00020192,2]
[330198335,1719120644143,-164.6,0.00020192,2]
[330198336,1719120644153,-423.67,0.00020192,2]
[330198337,1719120644163,-527.66,0.00020192,2]
[330198338,1719120644173,-150.0,0.00020192,2]
[330198339,1719120644183,-150.0,0.00020192,2]
[330198340,1719120644193,-354.29,0.00020192,2]
[330198341,1719120644204,-164.6,0.00020192,2]
[330198342,1719120644213,-150.0,0.00020192,2]
[330198343,1719120644222,-150.0,0.00020192,2]
[330198344,1719120644232,-150.0,0.00020192,2]
[330198345,1719120644242,-150.0,0.00020192,2]
[330198346,1719120644251,-150.0,0.00020192,2]
[330198347,1719120644260,-527.66,0.00020192,2]
[330198348,1719120644270,-150.0,0.00020192,2]
[330198349,1719120644279,-150.0,0.00020192,2]
[330198350,1719120644289,-354.29,0.00020192,2]
[330198351,1719120644298,-150.0,0.00020192,2]
[330198352,1719120644308,-164.6,0.00020192,2]
[330198353,1719120644318,-150.0,0.00020192,2]
[330198354,1719120644328,-150.0,0.00020192,2]
[330198355,1719120644339,-423.67,0.00020192,2]
[330198356,1719120644348,-150.0,0.00020192,2]
[330198357,1719120644357,-150.0,0.00020192,2]
[330198358,1719120644366,-527.66,0.00020192,2]
[330198359,1719120644376,-423.67,0.00020192,2]
[330198360,1719120644385,-150.0,0.00020192,2]
[330198361,1719120644395,-354.29,0.00020192,2]
[330198362,1719120644404,-150.0,0.00020192,2]
[330198363,1719120644413,-164.6,0.00020192,2]
[330198364,1719120644423,-150.0,0.00020192,2]
[330198365,1719120644432,-527.66,0.00020192,2]
[330198366,1719120644442,-150.0,0.00020192,2]
[330198367,1719120644452,-150.0,0.00020192,2]
[330198368,1719120644462,-150.0,0.00020192,2]
[330198369,1719120644471,-423.67,0.00020192,2]
[330198370,1719120644481,-150.0,0.00020192,2]
[330198371,1719120644491,-354.29,0.00020192,2]
[330198372,1719120644501,-150.0,0.00020192,2]
[330198373,1719120644510,-150.0,0.00020192,2]
[330198374,1719120644520,-164.6,0.00020192,2]
[330198375,1719120644529,-527.66,0.00020192,2]
[330198376,1719120644539,-150.0,0.00020192,2]
[330198377,1719120644548,-354.29,0.00020192,2]
[330198378,1719120644558,-150.0,0.00020192,2]
[330198379,1719120644567,-423.67,0.00020192,2]
[330198380,1719120644576,-164.6,0.00020192,2]
[330198381,1719120644586,-150.0,0.00020192,2]
[330198382,1719120644595,-150.0,0.00020192,2]
[330198383,1719120644604,-150.0,0.00020192,2]
[330198384,1719120644614,-150.0,0.00020192,2]
[330198385,1719120644623,-527.66,0.00020192,2]
[330198386,1719120644633,-150.0,0.00020192,2]
[330198387,1719120644643,-150.0,0.00020192,2]
[330198388,1719120644652,-164.6,0.00020192,2]
[330198389,1719120644662,-150.0,0.00020192,2]
[330198390,1719120644671,-354.29,0.00020192,2]
[330198391,1719120644681,-423.67,0.00020192,2]
[330198392,1719120644690,-423.67,0.00020192,2]
[330198393,1719120644700,-150.0,0.00020192,2]
[330198394,1719120644709,-150.0,0.00020192,2]
[330198395,1719120644718,-527.66,0.00020192,2]
[330198396,1719120644728,-150.0,0.00020192,2]
[330198397,1719120644737,-195.8,0.00020376,2]
[330198398,1719120644746,-222.77755898,0.00020456,2]
[330198399,1719120644755,-151.03,0.00020466,2]
[330198400,1719120644765,-231.59333343,0.000205,2]
[330198401,1719120644774,-231.59333335,0.00020544,2]
[330198402,1719120644784,-171.7,0.00020548,2]
[330198403,1719120644793,-600.0,0.00020578,2]
[330198404,1719120644805,-450.01240632,0.00020582,2]
[330198405,1719120644816,-231.59333335,0.00020589,2]
[330198406,1719120644826,-222.77755898,0.0002059,2]
[330198407,1719120644835,-222.77755898,0.0002059,2]
[330198408,1719120644845,-222.77755898,0.0002059,2]
[330198409,1719120644854,-222.77755898,0.0002059,2]
[330198410,1719120644863,-222.77755898,0.0002059,2]
[330198411,1719120644873,-222.77755898,0.0002059,2]
[330198412,1719120644882,-222.77755898,0.0002059,2]
[330198413,1719120644892,-222.77755898,0.0002059,2]
[330198414,1719120644901,-222.77755898,0.0002059,2]
[330198415,1719120644912,-222.77755898,0.0002059,2]
[330198416,1719120644923,-222.77755898,0.0002059,2]
[330198417,1719120644933,-222.77755898,0.0002059,2]
[330198418,1719120644944,-222.77755898,0.0002059,2]
[330198419,1719120644953,-222.77755898,0.0002059,2]
[330198420,1719120644963,-222.77755898,0.0002059,2]
[330198421,1719120644972,-222.77755898,0.0002059,2]
[330198422,1719120644982,-222.77755898,0.0002059,2]
[330198423,1719120644992,-222.77755898,0.0002059,2]
[330198424,1719120645002,-222.77755898,0.0002059,2]
[330198425,1719120645011,-222.77755898,0.0002059,2]
[330198426,1719120645023,-222.77755898,0.0002059,2]
[330198427,1719120645033,-222.77755898,0.0002059,2]
[330198428,1719120645044,-222.77755898,0.0002059,2]
[330198429,1719120645055,-222.77755898,0.0002059,2]
[330198430,1719120645064,-222.77755898,0.0002059,2]
[330198431,1719120645073,-222.77755898,0.0002059,2]
[330198432,1719120645083,-222.77755898,0.0002059,2]
[330198433,1719120645093,-222.77755898,0.0002059,2]
[330198434,1719120645103,-222.77755898,0.0002059,2]
[330198435,1719120645112,-222.77755898,0.0002059,2]
[330198436,1719120645121,-222.77755898,0.0002059,2]
[330198437,1719120645130,-222.77755898,0.0002059,2]
[330198438,1719120645336,-222.77755898,0.0002059,2]
[330198439,1719120645351,-222.77755898,0.0002059,2]
[330198440,1719120645360,-544.2029,0.000206,2]
[330198441,1719120645370,-2858.9344499,0.000206,2]
[330198442,1719120645379,-985.2291,0.000206,2]
[330198443,1719120645388,-2500.0,0.000206,2]
[330198444,1719120645398,-142505.18608656,0.000206,2]
[330198446,1719120870173,29360.75176589,0.0001298,2]
[330198447,1719120870197,133393.25921655,0.0001298,2]
[330198448,1719121017477,3207.71237371,0.00025,30]
[330198449,1719121407375,-544.2029,0.000139,2]
[330198450,1719121407464,-16093.10043726,0.00014,2]
[330198470,1719121832210,-300.0,0.00013999,2]
[330198471,1719121832219,-225320.71463105,0.00014,2]
[330198472,1719121832229,-231.59333343,0.00014301,2]
[330198473,1719121832238,-2858.9344499,0.00014401,2]
[330198474,1719121832247,-599.99,0.00014502,2]
[330198475,1719121832257,-335.24380157,0.00014934,2]
[330198476,1719121832279,-206.2162726,0.00014937,2]
[330198477,1719121832294,-150.0,0.00014986,2]
[330198478,1719121832308,-216.40400055,0.0001499,2]
[330198479,1719121832323,-347798.42559966,0.00015,2]
[330198480,1719121832366,-42875.08539904,0.00015,2]
[330198481,1719121832381,-3225.18523691,0.00015,2]
[330198496,1719121838554,-1800.50806288,0.00015,2]
[330198497,1719121838566,-2495.76048136,0.00015,2]
[330198498,1719121838579,-42349.15936483,0.00015,2]
[330198499,1719121838594,-231.59333335,0.00015034,2]
[330198500,1719121838604,-2858.93444981,0.00015123,2]
[330198501,1719121838613,-499.99,0.00015278,2]
[330198502,1719121838622,-420.0,0.00015337,2]
[330198503,1719121838633,-150.99,0.00015478,2]
[330198504,1719121838643,-231.59333335,0.00015767,2]
[330198505,1719121838652,-820.30404241,0.00015845,2]
[330198506,1719121838667,-2038.6304074,0.00015845,2]
[330198507,1719121838677,-340.74,0.00015969,2]
[330198508,1719121838687,-200.01,0.00016024,2]
[330198509,1719121838696,-250.0,0.00016024,2]
[330198510,1719121838706,-355.5196126,0.00016044,2]
[330198511,1719121838718,-527.3426415,0.00016044,2]
[330198512,1719121838765,-117.1377459,0.00016044,2]
[330198513,1719121838774,-3676.16,0.00016262,2]
[330198514,1719121838784,-150.0,0.00016302,2]
[330198515,1719121838794,-8292.90541934,0.00016302,2]
[330198516,1719121838830,-1012.68458066,0.00016302,2]
[330198517,1719121838840,-1340.07749841,0.00016321,2]
[330198518,1719121838849,-2161.58,0.00016322,2]
[330198519,1719121838859,-151.17,0.00016387,2]
[330198520,1719121838868,-250.0,0.00016403,2]
[330198521,1719121838877,-200.0,0.00016405,2]
[330198522,1719121838887,-206.21627256,0.00016428,2]
[330198523,1719121838896,-23900.0,0.00016472,2]
[330198524,1719121838905,-231.59333335,0.00016501,2]
[330198525,1719121838914,-2858.93444981,0.00016567,2]
[330198526,1719121838923,-150.68,0.00016653,2]
[330198527,1719121838932,-150.68,0.00016711,2]
[330198528,1719121838941,-599.99,0.00016765,2]
[330198529,1719121838950,-150.68,0.00016769,2]
[330198530,1719121838959,-430.89547468,0.00016799,2]
[330198531,1719121838968,-587.0,0.00016802,2]
[330198532,1719121838977,-150.68,0.00016827,2]
[330198533,1719121838987,-150.68,0.00016885,2]
[330198534,1719121838996,-887.81042537,0.00016942,2]
[330198535,1719121839005,-247.00917619,0.00016942,2]
[330198536,1719121839015,-150.68,0.00016943,2]
[330198537,1719121839024,-19601.74061485,0.00016969,2]
[330198538,1719121839033,-150.68,0.00017,2]
[330198539,1719121839043,-150.68,0.00017058,2]
[330198540,1719121839052,-167.0,0.00017083,2]
[330198541,1719121839062,-150.68,0.00017116,2]
[330198542,1719121839072,-150.68,0.00017174,2]
[330198543,1719121839081,-5822.0,0.000172,3]
[330198544,1719121839092,-150.68,0.00017232,2]
[330198545,1719121839102,-231.59333335,0.00017234,2]
[330198546,1719121839112,-2858.93444981,0.00017289,2]
[330198547,1719121839121,-150.68,0.0001729,2]
[330198548,1719121839130,-150.68,0.00017348,2]
[330198549,1719121839139,-150.68,0.00017405,2]
[330198550,1719121839148,-150.68,0.00017463,2]
[330198551,1719121839158,-150.68,0.00017521,2]
[330198552,1719121839167,-300.0,0.0001771,2]
[330198553,1719121839177,-206.21627256,0.00017919,2]
[330198554,1719121839186,-231.59333335,0.00017967,2]
[330198555,1719121839195,-2858.93444981,0.00018012,2]
[330198556,1719121839204,-1000.0,0.0001805,2]
[330198557,1719121839214,-10000.0,0.00018312,2]
[330198558,1719121839223,-823.0,0.00018408,2]
[330198559,1719121839232,-231.59333335,0.000187,2]
[330198560,1719121839241,-2858.93444981,0.00018734,2]
[330198561,1719121839250,-3396.57804839,0.00019,2]
[330198563,1719121840303,-901.25708631,0.00018312,2]
[330198565,1719121840315,-3325.0,0.00018312,2]
[330198567,1719121840330,-636.58293289,0.00018312,2]
[330198569,1719121840340,-1323.41706711,0.00019,2]
[330198571,1719121840351,-3591.1465459,0.00019,2]
[330198572,1719121840401,-17160.4602514,0.00019,2]
[330198573,1719121840413,-578.06080476,0.00019,2]
[330198574,1719121840487,-1986.34492326,0.00019,2]
[330198575,1719121840579,-69939.06661913,0.00019,2]
[330198576,1719121840595,-3676.24400557,0.00019,2]
[330198577,1719121840604,-599.99,0.00019029,2]
[330198578,1719121840614,-2161.58,0.00019062,2]
[330198579,1719121840623,-219.9,0.00019068,3]
[330198580,1719121840634,-300.0,0.0001908,2]
[330198581,1719121840643,-852.82,0.00019096,2]
[330198582,1719121840653,-852.82,0.00019096,2]
[330198583,1719121840663,-851.86,0.00019096,2]
[330198584,1719121840673,-322.7430439,0.00019178,2]
[330198585,1719121840683,-500.0,0.00019178,2]
[330198586,1719121840692,-500.0,0.00019178,2]
[330198587,1719121840701,-500.0,0.00019178,2]
[330198588,1719121840710,-525.82379106,0.00019178,2]
[330198589,1719121840720,-500.0,0.00019178,2]
[330198590,1719121840729,-306.01422632,0.00019178,2]
[330198591,1719121840739,-500.0,0.00019178,2]
[330198592,1719121840748,-500.0,0.00019178,2]
[330198593,1719121840758,-500.92296281,0.00019178,2]
[330198594,1719121840768,-500.0,0.00019178,2]
[330198595,1719121840778,-500.0,0.00019178,2]
[330198596,1719121840787,-500.0,0.00019178,2]
[330198597,1719121840797,-500.0,0.00019178,2]
[330198598,1719121840806,-500.0,0.00019178,2]
[330198599,1719121840817,-500.0,0.00019178,2]
[330198600,1719121840826,-181.79472986,0.00019178,2]
[330198601,1719121840835,-500.0,0.00019178,2]
[330198602,1719121840844,-500.0,0.00019178,2]
[330198603,1719121840854,-500.0,0.00019178,2]
[330198604,1719121840863,-500.0,0.00019178,2]
[330198605,1719121840873,-500.0,0.00019178,2]
[330198606,1719121840882,-500.0,0.00019178,2]
[330198607,1719121840891,-500.0,0.00019178,2]
[330198608,1719121840900,-478.93104083,0.00019178,2]
[330198609,1719121840910,-500.0,0.00019178,2]
[330198610,1719121840919,-500.0,0.00019178,2]
[330198611,1719121840928,-500.0,0.00019178,2]
[330198612,1719121840937,-250.0,0.00019178,2]
[330198613,1719121840947,-603.445,0.00019273,2]
[330198614,1719121840957,-813.0,0.00019273,2]
[330198615,1719121840966,-38133.0,0.00019273,2]
[330198616,1719121840976,-211.0,0.00019273,2]
[330198617,1719121840985,-5795.0,0.00019273,2]
[330198618,1719121840995,-2162.9879146,0.00019273,2]
[330198619,1719121841006,-844.59940527,0.00019273,2]
[330198620,1719121841018,-2156.41268013,0.00019273,2]
[330198621,1719121841028,-290.0,0.00019273,2]
[330198622,1719121841037,-1196.0,0.00019273,2]
[330198623,1719121841046,-151.052,0.00019273,2]
[330198624,1719121841056,-1659.0,0.00019273,2]
[330198625,1719121841066,-150.35,0.00019273,2]
[330198626,1719121841077,-1156.141,0.00019273,2]
[330198627,1719121841086,-323.34,0.0001937,2]
[330198628,1719121841095,-242.79,0.0001937,2]
[330198629,1719121841105,-286.18,0.0001937,2]
[330198630,1719121841114,-354.29,0.0001937,2]
[330198631,1719121841123,-150.0,0.0001937,2]
[330198632,1719121841132,-164.6,0.0001937,2]
[330198633,1719121841142,-527.66,0.0001937,2]
[330198634,1719121841151,-150.0,0.0001937,2]
[330198635,1719121841160,-423.67,0.0001937,2]
[330198636,1719121841170,-150.0,0.0001937,2]
[330198637,1719121841180,-300.0,0.0001937,2]
[330198638,1719121841189,-150.0,0.0001937,2]
[330198639,1719121841198,-354.29,0.0001937,2]
[330198641,1719121841207,-329.03,0.0001937,2]
[330198642,1719121841216,-150.0,0.0001937,2]
[330198644,1719121841226,-164.6,0.0001937,2]
[330198646,1719121841235,-150.0,0.0001937,2]
[330198647,1719121841244,-150.0,0.0001937,2]
[330198649,1719121841254,-1047.3,0.0001937,2]
[330198650,1719121841263,-150.0,0.0001937,2]
[330198651,1719121841273,-150.0,0.0001937,2]
[330198652,1719121841282,-615.89,0.0001937,2]
[330198653,1719121841292,-164.6,0.0001937,2]
[330198654,1719121841302,-164.6,0.0001937,2]
[330198655,1719121841312,-423.67,0.0001937,2]
[330198656,1719121841324,-150.0,0.0001937,2]
[330198657,1719121841333,-527.66,0.0001937,2]
[330198658,1719121841342,-150.0,0.0001937,2]
[330198659,1719121841352,-527.66,0.0001937,2]
[330198660,1719121841362,-150.0,0.0001937,2]
[330198661,1719121841371,-610.25,0.0001937,2]
[330198662,1719121841380,-150.0,0.0001937,2]
[330198663,1719121841390,-164.6,0.0001937,2]
[330198664,1719121841399,-423.67,0.0001937,2]
[330198665,1719121841409,-423.67,0.0001937,2]
[330198666,1719121841418,-527.66,0.0001937,2]
[330198667,1719121841428,-150.0,0.0001937,2]